bitfinex-derivatives/quotes_SOLF0:USTF0_20251222
["timestamp","ask_amount","ask_price","bid_price","bid_amount"]
[1766377810743,0.05079398,126.42,126.37,3.38]
[1766377810943,3.22079398,126.42,126.35,10.5055]
[1766377811846,3.22079398,126.42,126.37,0.05400404]
[1766377821873,5.53672907,126.42,126.37,0.05400404]
[1766377822072,3.17,126.41,126.37,0.05400404]
[1766377823064,2.36672907,126.42,126.33,50.12]
[1766377823065,3.17,126.39,126.33,50.12]
[1766377823259,3.17,126.39,126.32,7.1272]
[1766377823868,3.17,126.39,126.32,10.5072]
[1766377824067,0.05905219,126.37,126.34,0.05474352]
[1766377826570,3.22905219,126.37,126.34,0.05474352]
[1766377827967,4.71201221,126.37,126.34,0.05474352]
[1766377830167,3.17,126.36,126.3,3.38]
[1766377831375,0.05527943,126.34,126.32,0.05739529]
[1766377834177,3.17,126.33,126.28,3.38]
[1766377834978,3.17,126.33,126.27,7.1302]
[1766377835278,0.05472191,126.31,126.29,0.0591025]
[1766377835476,0.05472191,126.31,126.26,3.38]
[1766377835682,3.39472191,126.31,126.25,7.1311]
[1766377835880,3.39472191,126.31,126.24,3.26]
[1766377836578,3.39472191,126.31,126.26,0.05679664]
[1766377840084,4.82296002,126.3,126.26,0.05679664]
[1766377840580,3.34,126.3,126.26,0.05679664]
[1766377845984,3.34,126.29,126.21,3.26]
[1766377846183,110.8771,126.32,126.21,3.26]
[1766377846184,3.34,126.27,126.21,3.26]
[1766377847081,0.05537078,126.25,126.23,0.0587766]
[1766377847882,0.05537078,126.25,126.19,3.26]
[1766377848987,0.05537078,126.25,126.21,0.05924011]
[1766377851684,110.8771,126.32,126.25,3.26]
[1766377851685,4.82296002,126.32,126.25,3.26]
[1766377851890,3.34,126.31,126.25,3.26]
[1766377852293,3.34,126.31,126.25,10.3913]
[1766377852485,3.45,126.33,126.26,3.39]
[1766377852788,0.05019048,126.31,126.28,0.05160631]
[1766377856083,3.50019048,126.31,126.28,0.00160631]
[1766377857582,3.50019048,126.31,126.24,10.5219]
[1766377858093,3.50019048,126.31,126.25,10.5213]
[1766377858392,3.45,126.31,126.25,10.5213]
[1766377858693,0.06083511,126.29,126.27,0.05017146]
[1766377860290,3.51083511,126.29,126.23,10.5223]
[1766377860682,0.00083511,126.29,126.24,3.39]
[1766377860890,0.00083511,126.29,126.27,3.39]
[1766377861287,0.00083511,126.29,126.25,3.39]
[1766377861788,0.00083511,126.29,126.26,0.05610762]
[1766377867290,4.92379513,126.29,126.26,0.05610762]
[1766377867493,4.92379513,126.29,126.2,13.17]
[1766377867494,3.44,126.28,126.2,13.17]
[1766377867696,3.44,126.28,126.21,3.17]
[1766377867894,1.48296002,126.29,126.22,3.17]
[1766377868389,4.92296002,126.29,126.22,3.17]
[1766377868594,0.06069866,126.27,126.24,0.0572582]
[1766377871004,0.06069866,126.27,126.24,3.2272582]
[1766377871301,0.00069866,126.27,126.24,3.2272582]
[1766377872589,0.00069866,126.27,126.24,10.3592582]
[1766377873293,4.92296002,126.31,126.26,3.17]
[1766377874392,0.05344114,126.3,126.27,0.06051]
[1766377878203,3.44,126.28,126.22,3.17]
[1766377878807,3.44,126.28,126.22,10.3031]
[1766377879010,3.44,126.28,126.23,3.17]
[1766377879206,0.05221815,126.26,126.24,0.0562467]
[1766377884616,0.00221815,126.26,126.24,3.2262467]
[1766377884815,0.00221815,126.26,126.24,0.0562467]
[1766377885614,3.44221815,126.26,126.2,3.17]
[1766377886714,3.44221815,126.26,126.22,0.05309313]
[1766377887112,3.44,126.24,126.18,3.17]
[1766377887507,1.48296002,126.23,126.18,3.17]
[1766377887712,4.92296002,126.23,126.17,10.3056]
[1766377888118,0.06074511,126.21,126.19,0.0467879]
[1766377888713,0.00074511,126.21,126.19,3.2167879]
[1766377895224,0.00074511,126.21,126.19,0.0467879]
[1766377897222,0.00074511,126.21,126.16,3.21]
[1766377897830,0.00074511,126.21,126.18,3.21]
[1766377898324,3.44,126.26,126.19,3.21]
[1766377898533,52.5616645,126.3,126.19,3.21]
[1766377898730,3.44,126.29,126.19,3.21]
[1766377899319,3.44,126.29,126.18,120.9937]
[1766377899320,0.05047667,126.25,126.23,0.05889517]
[1766377899521,0.05686085,126.25,126.23,0.05889517]
[1766377904436,3.32686085,126.25,126.19,7.1344]
[1766377904633,3.27,126.25,126.19,7.1344]
[1766377905436,0.05475264,126.23,126.19,7.1344]
[1766377908943,0.05475264,126.23,126.18,3.44]
[1766377911547,0.05475264,126.23,126.2,7.1342]
[1766377914552,3.32475264,126.23,126.16,67.61624358]
[1766377914847,0.05475264,126.23,126.16,3.44]
[1766377915053,0.05475264,126.23,126.17,3.44]
[1766377916643,0.05475264,126.23,126.18,10.5753]
[1766377918353,0.05475264,126.23,126.18,3.44]
[1766377921942,0.00475264,126.23,126.18,10.5753]
[1766377922144,0.00475264,126.23,126.19,3.44]
[1766377922945,0.00475264,126.23,126.21,3.44]
[1766377923351,10.4002,126.28,126.21,3.44]
[1766377923556,59.5205645,126.3,126.21,3.44]
[1766377924557,0.05718855,126.27,126.24,0.05660258]
[1766377926661,3.33718855,126.27,126.21,3.5]
[1766377928053,0.05718855,126.27,126.21,3.5]
[1766377928660,3.33718855,126.27,126.21,3.5]
[1766377929963,3.28,126.26,126.19,3.5]
[1766377930164,0.05864669,126.24,126.19,3.5]
[1766377931460,3.33864669,126.24,126.17,10.6356]
[1766377931661,0.05603755,126.22,126.17,10.6356]
[1766377932364,0.05603755,126.22,126.18,3.5]
[1766377947267,3.33603755,126.22,126.16,3.5]
[1766377947883,2.3216645,126.21,126.16,3.5]
[1766377948377,3.21,126.2,126.14,3.3]
[1766377948676,0.05563713,126.18,126.14,3.3]
[1766377949376,0.05563713,126.18,126.14,10.4376]
[1766377950077,0.05563713,126.18,126.14,3.3]
[1766377950276,2.3216645,126.17,126.12,3.3]
[1766377951778,3.26563713,126.18,126.12,3.3]
[1766377951979,4.75324079,126.18,126.12,3.3]
[1766377952281,11.88884079,126.18,126.12,3.3]
[1766377952683,4.75324079,126.18,126.12,3.3]
[1766377955286,0.05563713,126.18,126.12,3.3]
[1766377956490,1.54324079,126.18,126.12,3.3]
[1766377956683,1.54324079,126.18,126.13,7.1382]
[1766377956886,1.54324079,126.18,126.12,3.3]
[1766377956887,4.87324079,126.18,126.12,3.3]
[1766377957285,1.48760366,126.17,126.12,3.3]
[1766377958286,4.87324079,126.18,126.12,10.4385]
[1766377958484,4.87324079,126.18,126.13,3.35]
[1766377958688,0.05563713,126.18,126.13,3.35]
[1766377959298,3.38563713,126.18,126.13,3.35]
[1766377959691,0.05563713,126.18,126.13,10.4881]
[1766377960395,1.54324079,126.18,126.13,10.4881]
[1766377960795,4.87324079,126.18,126.13,10.4881]
[1766377961096,4.87324079,126.18,126.12,3.35]
[1766377961297,0.05553414,126.16,126.12,3.35]
[1766377963492,4.8731378,126.16,126.1,3.35]
[1766377964092,4.8731378,126.16,126.1,10.4899]
[1766377965905,3.38553414,126.16,126.11,3.35]
[1766377966203,4.8731378,126.16,126.11,3.35]
[1766377966795,1.5431378,126.16,126.12,3.35]
[1766377967296,0.05553414,126.16,126.12,3.35]
[1766377967806,48.30760366,126.18,126.13,10.54373414]
[1766377968692,0.0545579,126.17,126.13,10.54373414]
[1766377971502,3.3845579,126.17,126.13,0.05553414]
[1766377971694,3.3845579,126.17,126.13,3.40553414]
[1766377971695,0.0545579,126.17,126.13,3.40553414]
[1766377973209,0.0045579,126.17,126.13,10.54373414]
[1766377973400,0.0045579,126.17,126.14,3.35]
[1766377974111,0.0045579,126.17,126.13,0.05553414]
[1766377978506,4.81760366,126.16,126.13,0.05553414]
[1766377979212,11.95430366,126.16,126.1,3.35]
[1766377979410,4.81760366,126.16,126.1,3.35]
[1766377980216,0.05827544,126.14,126.12,0.05]
[1766377981412,0.05827544,126.14,126.08,3.35]
[1766377981715,1.5458791,126.14,126.08,3.35]
[1766377982709,8.6836791,126.14,126.08,3.35]
[1766377984713,1.5458791,126.14,126.08,10.491]
[1766377985102,1.5458791,126.14,126.09,3.35]
[1766377987416,7.1364,126.17,126.09,3.35]
[1766377987616,1.48760366,126.17,126.09,3.35]
[1766377988512,0.00111335,126.14,126.12,0.0521873]
[1766377989119,0.00111335,126.14,126.12,3.4521873]
[1766377992322,0.00111335,126.14,126.12,10.5909873]
[1766377992917,0.00111335,126.14,126.12,3.4521873]
[1766377993115,0.00111335,126.14,126.12,0.0521873]
[1766377993625,57.1853,126.19,126.12,3.4521873]
[1766377993811,1.48760366,126.17,126.12,3.4521873]
[1766377994622,0.05644846,126.16,126.12,3.4521873]
[1766377995125,1.48760366,126.21,126.12,3.4521873]
[1766377995323,1.48760366,126.21,126.12,3.4]
[1766377996023,0.00242543,126.18,126.15,3.45000737]
[1766378001628,4.69760366,126.22,126.16,3.4]
[1766378001830,4.69760366,126.2,126.13,3.4]
[1766378002623,0.06014876,126.18,126.15,0.0542614]
[1766378003226,1.54775242,126.18,126.15,0.0542614]
[1766378003623,0.06014876,126.18,126.15,0.0542614]
[1766378012936,0.06014876,126.18,126.15,3.3742614]
[1766378015133,0.06014876,126.18,126.15,10.5113614]
[1766378015836,0.00014876,126.18,126.15,10.5113614]
[1766378019739,0.00014876,126.18,126.15,3.3742614]
[1766378048756,0.00014876,126.18,126.16,3.32]
[1766378054861,0.00014876,126.18,126.15,0.0542614]
[1766378055770,0.00014876,126.18,126.15,3.3742614]
[1766378065787,0.00014876,126.18,126.15,6.14e-05]
[1766378066778,7.13594876,126.18,126.15,0.0520126]
[1766378071483,0.00014876,126.18,126.16,3.39]
[1766378072486,3.61494876,126.2,126.16,3.39]
[1766378073589,0.0582224,126.19,126.16,3.39]
[1766378074592,7.1933224,126.19,126.15,0.0519512]
[1766378080489,10.5356,126.18,126.15,0.0519512]
[1766378082095,0.0582224,126.19,126.15,0.0519512]
[1766378087697,3.4582224,126.19,126.15,0.0519512]
[1766378088098,4.94469242,126.19,126.15,0.0519512]
[1766378089205,3.4,126.16,126.11,10.0]
[1766378089407,4.88647002,126.15,126.08,17.1407]
[1766378090106,46.82,126.17,126.08,24.50584454]
[1766378090107,1.48647002,126.16,126.08,24.50584454]
[1766378090401,0.05659828,126.13,126.1,0.05650964]
[1766378090797,1.48647002,126.16,126.1,0.05650964]
[1766378091709,1.48647002,126.16,126.1,7.19630964]
[1766378092907,0.056328,126.14,126.1,7.19630964]
[1766378100715,0.056328,126.14,126.05,7.36514454]
[1766378100716,4.88647002,126.12,126.05,7.36514454]
[1766378100913,4.88647002,126.12,126.05,54.20514454]
[1766378101306,3.4,126.11,126.05,46.84]
[1766378101504,1.48647002,126.1,126.05,46.84]
[1766378101708,1.48647002,126.1,126.06,7.19815989]
[1766378101918,1.48647002,126.12,126.06,7.19815989]
[1766378102212,4.88647002,126.12,126.06,7.19815989]
[1766378102713,4.88647002,126.12,126.07,7.1415]
[1766378102916,0.05017238,126.11,126.07,7.1415]
[1766378104215,0.05017238,126.11,126.06,0.05605989]
[1766378104520,3.4,126.09,126.06,0.05605989]
[1766378105215,0.05017238,126.11,126.02,46.84]
[1766378105216,4.92647002,126.08,126.02,46.84]
[1766378105427,1.48647002,126.05,126.02,46.84]
[1766378106009,7.002e-05,126.05,126.02,46.84]
[1766378106209,0.05038874,126.05,126.02,46.89039836]
[1766378108018,0.05038874,126.05,126.02,0.05039836]
[1766378108621,4.97685876,126.05,125.97,111.1751]
[1766378108819,4.92647002,126.05,125.98,46.84]
[1766378109023,1.48647002,126.05,125.98,158.0106]
[1766378109825,0.06016439,126.03,126.0,0.05111211]
[1766378110132,0.06016439,126.03,126.0,7.19661211]
[1766378110425,0.06016439,126.03,126.0,0.05111211]
[1766378111420,0.00016439,126.03,126.0,7.19661211]
[1766378112533,0.00016439,126.03,126.0,0.05111211]
[1766378116548,0.00016439,126.03,125.95,7.148]
[1766378116549,4.92647002,126.02,125.95,7.148]
[1766378117137,3.44,126.02,125.96,7.1477]
[1766378117334,3.44,126.04,125.95,111.1989]
[1766378117542,0.05150682,126.01,125.98,0.05743477]
[1766378121346,3.49150682,126.01,125.98,0.05743477]
[1766378122851,0.05150682,126.01,125.98,0.05743477]
[1766378129458,3.24,126.0,125.94,10.0]
[1766378129752,3.24,126.0,125.92,46.88]
[1766378130546,0.05156866,125.97,125.95,0.05095415]
[1766378132358,3.24,126.02,125.95,0.05095415]
[1766378132560,3.24,126.02,125.93,111.2127]
[1766378133153,3.24,126.02,125.96,7.1477]
[1766378133550,3.29417633,126.0,125.98,1.403e-05]
[1766378133750,3.24,126.0,125.98,1.403e-05]
[1766378134757,3.29075725,126.0,125.98,1.403e-05]
[1766378141568,50.08,126.05,125.98,1.403e-05]
[1766378141868,50.08,126.05,125.99,7.1461]
[1766378141869,3.2,126.04,125.99,7.1461]
[1766378142662,0.0593477,126.03,126.0,0.05464602]
[1766378143163,3.2593477,126.03,126.0,0.05464602]
[1766378146669,0.0593477,126.03,126.0,0.05464602]
[1766378148170,3.2593477,126.03,126.0,0.00464602]
[1766378158176,0.0593477,126.03,126.0,0.00464602]
[1766378158381,3.2,126.07,126.0,0.00464602]
[1766378158574,3.2,126.07,125.98,111.173]
[1766378159480,0.05582836,126.04,126.01,7.19521286]
[1766378161281,3.2,126.08,126.02,7.1445]
[1766378161484,3.2,126.08,126.0,118.51394454]
[1766378162186,3.2,126.08,126.0,111.1488]
[1766378162383,0.05574096,126.05,126.03,0.06079111]
[1766378162575,0.05574096,126.05,126.03,7.20459111]
[1766378164482,50.08,126.1,126.04,7.1431]
[1766378164682,3.2,126.12,126.04,111.119]
[1766378165182,3.2,126.12,126.04,157.999]
[1766378165579,0.05627722,126.09,126.07,0.05959281]
[1766378165881,3.2,126.12,126.07,0.05959281]
[1766378166986,3.27247701,126.11,126.07,0.05959281]
[1766378179992,0.05247701,126.11,126.07,0.05959281]
[1766378181298,3.27247701,126.11,126.07,0.05959281]
[1766378185001,3.27247701,126.11,126.07,7.20119281]
[1766378185602,3.27247701,126.11,126.07,0.05959281]
[1766378191211,3.27247701,126.11,126.03,17.1437]
[1766378191412,3.32,126.1,126.03,7.1437]
[1766378192326,3.37857065,126.08,126.05,0.05193383]
[1766378198728,0.05857065,126.08,126.05,7.19473383]
[1766378198916,3.18,126.1,126.05,0.05193383]
[1766378199927,0.05085124,126.09,126.06,7.1422]
[1766378208128,3.18,126.12,126.07,7.1416]
[1766378208329,3.18,126.14,126.05,119.96319111]
[1766378208640,3.18,126.14,126.06,111.1017]
[1766378209033,3.18,126.16,126.08,111.0838]
[1766378209228,3.18,126.16,126.11,0.053863]
[1766378209229,0.00400478,126.13,126.11,0.053863]
[1766378209537,3.18,126.16,126.11,0.053863]
[1766378210435,0.05880464,126.15,126.11,0.053863]
[1766378210638,3.18,126.18,126.13,7.1381]
[1766378211241,3.18,126.2,126.14,7.1376]
[1766378211440,3.18,126.2,126.13,46.86]
[1766378211742,3.2323212,126.18,126.1,46.86]
[1766378211940,3.18,126.18,126.1,46.86]
[1766378212148,3.18,126.16,126.1,53.9996]
[1766378212745,0.05778663,126.14,126.12,0.05951531]
[1766378217543,3.18,126.16,126.12,0.05951531]
[1766378217544,1.48914657,126.17,126.12,7.19801531]
[1766378217953,4.66914657,126.17,126.12,7.19801531]
[1766378218343,3.18,126.17,126.12,7.19801531]
[1766378218541,0.05157182,126.16,126.12,7.19801531]
[1766378218741,0.05157182,126.16,126.13,7.1382]
[1766378220649,3.18,126.21,126.14,46.84]
[1766378221750,0.05639278,126.19,126.16,0.05058062]
[1766378228846,0.05639278,126.19,126.16,7.18708062]
[1766378229249,3.36639278,126.19,126.16,0.05058062]
[1766378230261,3.36639278,126.19,126.14,46.84]
[1766378230262,3.31,126.18,126.14,46.84]
[1766378231358,3.31,126.18,126.15,0.0503728]
[1766378233371,0.05639278,126.19,126.15,0.0503728]
[1766378233872,3.36639278,126.19,126.15,0.0503728]
[1766378239477,3.36639278,126.19,126.15,0.0003728]
[1766378239478,4.85553935,126.19,126.15,0.0003728]
[1766378239779,3.31,126.18,126.15,0.0003728]
[1766378240369,1.54553935,126.19,126.1,3.3]
[1766378240370,3.31,126.16,126.1,3.3]
[1766378241273,0.05921776,126.14,126.12,0.06009458]
[1766378241675,0.05921776,126.14,126.12,9.458e-05]
[1766378244283,3.31,126.17,126.12,3.30009458]
[1766378244488,4.79914657,126.19,126.12,3.30009458]
[1766378244689,3.31,126.19,126.12,3.30009458]
[1766378244889,3.31,126.19,126.14,3.3]
[1766378245194,3.31,126.21,126.14,3.3]
[1766378245386,0.05980017,126.19,126.16,0.05633605]
[1766378250295,3.44980017,126.19,126.16,0.05633605]
[1766378254299,3.44980017,126.19,126.14,46.82]
[1766378255301,3.44980017,126.19,126.15,0.05931778]
[1766378258505,3.44980017,126.19,126.15,7.19641778]
[1766378259899,3.25,126.25,126.16,3.35]
[1766378261107,3.30844447,126.22,126.19,0.05998026]
[1766378263008,3.30844447,126.22,126.17,7.1359]
[1766378264009,3.30844447,126.22,126.18,0.05839488]
[1766378268505,3.30844447,126.22,126.17,7.1359]
[1766378269507,3.30844447,126.22,126.18,0.05312528]
[1766378281620,3.30844447,126.22,126.18,0.00312528]
[1766378281807,3.30844447,126.22,126.15,7.1367]
[1766378282007,3.25,126.21,126.13,3.35]
[1766378282214,3.25,126.21,126.12,7.34248285]
[1766378282415,3.25,126.21,126.12,10.69248285]
[1766378282608,3.25,126.21,126.13,3.35]
[1766378282807,0.05614391,126.18,126.16,0.05522379]
[1766378285116,3.25,126.21,126.16,10.54142379]
[1766378285424,3.25,126.21,126.16,7.19142379]
[1766378285720,3.25,126.21,126.16,0.05522379]
[1766378286222,3.51,126.19,126.16,0.05522379]
[1766378286729,0.05750691,126.2,126.16,0.05522379]
[1766378287022,0.05750691,126.2,126.16,3.53522379]
[1766378288621,61.32867557,126.27,126.18,3.48]
[1766378288917,3.47,126.26,126.18,3.48]
[1766378289118,3.47,126.26,126.2,10.6142]
[1766378289728,0.05137802,126.24,126.22,0.05724782]
[1766378291222,3.47,126.28,126.22,3.53724782]
[1766378291427,3.47,126.31,126.23,3.48]
[1766378292328,0.05261739,126.28,126.26,0.05276433]
[1766378305939,3.47,126.33,126.26,3.53276433]
[1766378306236,3.47,126.33,126.26,3.48]
[1766378306741,3.47,126.33,126.27,10.6103]
[1766378306934,0.05968851,126.31,126.29,0.05964945]
[1766378308039,3.47,126.33,126.29,0.05964945]
[1766378308240,46.82,126.35,126.29,0.05964945]
[1766378308555,50.07,126.35,126.29,3.44964945]
[1766378308752,3.25,126.35,126.29,3.44964945]
[1766378309246,0.05301784,126.33,126.29,3.44964945]
[1766378309627,3.25,126.37,126.31,3.39]
[1766378310628,0.06071604,126.35,126.33,0.06056305]
[1766378310830,3.25,126.39,126.33,0.06056305]
[1766378311030,3.25,126.39,126.33,3.45056305]
[1766378311531,3.25,126.39,126.34,10.5163]
[1766378311949,0.05583746,126.38,126.34,7.1263]
[1766378312147,3.30583746,126.38,126.33,0.06056305]
[1766378317952,4.78852923,126.38,126.33,0.06056305]
[1766378318952,3.4,126.37,126.33,0.06056305]
[1766378322547,4.88269177,126.36,126.33,0.00056305]
[1766378323054,4.88269177,126.36,126.26,136.24499177]
[1766378323055,4.88269177,126.34,126.27,3.2]
[1766378323241,3.4,126.33,126.27,3.2]
[1766378323450,3.4,126.33,126.28,7.1297]
[1766378323845,4.88269177,126.32,126.27,3.2]
[1766378324050,0.05025341,126.31,126.28,0.05538628]
[1766378326950,3.45025341,126.31,126.25,49.96]
[1766378327152,4.83269177,126.3,126.25,46.76]
[1766378327856,4.83269177,126.3,126.25,53.8914]
[1766378328058,0.05025341,126.31,126.26,3.25658612]
[1766378328751,0.05025341,126.31,126.27,7.1302]
[1766378330259,0.05025341,126.31,126.26,3.25658612]
[1766378331057,3.40025341,126.31,126.26,10.38738612]
[1766378331357,3.40025341,126.31,126.26,0.05658612]
[1766378332158,3.40025341,126.31,126.26,7.18728612]
[1766378332361,3.40025341,126.31,126.26,10.38728612]
[1766378336161,4.83269177,126.3,126.26,0.05658612]
[1766378339161,3.35,126.3,126.26,0.05658612]
[1766378342754,0.05025341,126.31,126.26,3.25658612]
[1766378343654,0.05025341,126.31,126.26,10.38748612]
[1766378345167,0.05025341,126.31,126.27,10.3303]
[1766378347268,0.05025341,126.31,126.27,3.2]
[1766378348371,0.05025341,126.31,126.26,0.05658612]
[1766378348568,3.40025341,126.31,126.26,0.05658612]
[1766378348775,4.83269177,126.29,126.26,0.05658612]
[1766378348974,1.48269177,126.29,126.26,0.05658612]
[1766378349264,4.88294518,126.31,126.26,0.05658612]
[1766378349474,3.35,126.3,126.26,0.05658612]
[1766378349668,0.05025341,126.31,126.26,3.49658612]
[1766378352073,3.40025341,126.31,126.26,0.05658612]
[1766378353772,3.40025341,126.31,126.26,3.49658612]
[1766378355482,0.05025341,126.31,126.26,10.62718612]
[1766378361075,0.00025341,126.31,126.27,10.5701]
[1766378361275,0.00025341,126.31,126.28,3.44]
[1766378362676,0.00025341,126.31,126.28,10.5696]
[1766378364178,3.35,126.35,126.29,10.5689]
[1766378364779,3.35,126.35,126.3,3.44]
[1766378365180,0.05582948,126.34,126.31,0.05272266]
[1766378370496,0.05582948,126.34,126.31,3.45272266]
[1766378374890,0.05582948,126.34,126.31,0.05272266]
[1766378375687,3.46582948,126.34,126.31,0.05272266]
[1766378376690,3.36,126.33,126.27,3.3]
[1766378376891,3.36,126.33,126.25,3.3]
[1766378377688,0.05148617,126.3,126.28,0.05230908]
[1766378378295,0.05148617,126.3,126.28,0.00230908]
[1766378379096,4.84417794,126.3,126.24,46.76]
[1766378380001,3.36148617,126.3,126.26,0.05288366]
[1766378383707,3.36148617,126.3,126.26,0.00288366]
[1766378383900,3.26,126.29,126.21,17.7445738]
[1766378384207,3.26,126.29,126.21,10.4334]
[1766378384707,3.26,126.29,126.22,10.4331]
[1766378384899,0.0599306,126.27,126.24,0.05224652]
[1766378398414,3.3199306,126.27,126.24,0.05224652]
[1766378399203,5.52962226,126.26,126.18,3.3]
[1766378399513,3.21,126.23,126.16,3.3]
[1766378400216,0.05256415,126.21,126.18,0.05343344]
[1766378400809,3.26256415,126.21,126.16,3.3]
[1766378401007,3.26256415,126.21,126.14,3.3]
[1766378401210,3.21,126.21,126.14,3.3]
[1766378401416,3.21,126.21,126.15,3.3]
[1766378401610,3.21,126.23,126.15,3.3]
[1766378401812,3.21,126.23,126.13,157.8156]
[1766378401813,0.05246647,126.2,126.18,0.05556812]
[1766378402411,3.26,126.23,126.18,0.05556812]
[1766378403416,0.056355,126.22,126.18,0.05556812]
[1766378403616,3.2,126.21,126.14,3.3]
[1766378403808,5.51962226,126.21,126.14,3.3]
[1766378404009,3.2,126.21,126.14,3.3]
[1766378404210,5.51962226,126.23,126.16,3.3]
[1766378404417,3.2,126.23,126.16,3.3]
[1766378404606,0.05014563,126.21,126.18,0.05001668]
[1766378405014,0.00014563,126.21,126.18,3.35001668]
[1766378408220,0.00014563,126.21,126.19,3.49]
[1766378410710,0.00014563,126.21,126.18,0.05001668]
[1766378411725,0.00014563,126.21,126.15,50.29]
[1766378412314,2.31976789,126.21,126.15,50.29]
[1766378412510,2.31976789,126.21,126.15,57.427]
[1766378412711,2.31976789,126.21,126.17,0.06022025]
[1766378412914,0.00014563,126.21,126.17,0.06022025]
[1766378415426,2.31976789,126.21,126.17,0.06022025]
[1766378418726,5.56976789,126.21,126.17,0.06022025]
[1766378419031,3.25014563,126.21,126.17,0.06022025]
[1766378424032,3.19,126.2,126.13,10.6279]
[1766378425043,0.05367067,126.18,126.15,0.0539616]
[1766378425734,3.24367067,126.18,126.15,0.0039616]
[1766378430043,0.05367067,126.18,126.15,0.0039616]
[1766378430845,3.19367067,126.18,126.15,0.0039616]
[1766378433846,3.19367067,126.18,126.11,57.4294]
[1766378435040,3.19367067,126.18,126.13,0.05548547]
[1766378440355,3.19367067,126.18,126.13,7.19368547]
[1766378445248,3.19367067,126.18,126.13,10.55368547]
[1766378445451,0.05367067,126.18,126.14,10.4976]
[1766378445847,0.05367067,126.18,126.15,7.137]
[1766378457058,0.05367067,126.18,126.14,3.36]
[1766378460163,3.19367067,126.18,126.13,0.05548547]
[1766378460468,3.19367067,126.18,126.13,3.41548547]
[1766378460864,0.05367067,126.18,126.13,3.41548547]
[1766378461555,0.05367067,126.18,126.13,10.55368547]
[1766378462168,0.05367067,126.18,126.14,3.36]
[1766378462469,0.00367067,126.18,126.15,3.36]
[1766378463665,0.00367067,126.18,126.16,3.36]
[1766378463862,0.00367067,126.18,126.16,3.41026568]
[1766378464860,0.00367067,126.18,126.16,10.54676568]
[1766378465578,3.19,126.22,126.17,3.24]
[1766378465762,3.19,126.24,126.18,3.24]
[1766378466669,0.05944149,126.22,126.2,0.0576195]
[1766378467058,50.05,126.26,126.2,3.2976195]
[1766378467962,0.05146419,126.24,126.2,3.2976195]
[1766378470461,0.05146419,126.24,126.2,10.4318195]
[1766378470666,0.05146419,126.24,126.21,3.24]
[1766378471862,0.00146419,126.24,126.21,3.24]
[1766378478375,0.00146419,126.24,126.21,10.3737]
[1766378478574,0.00146419,126.24,126.22,3.24]
[1766378487381,0.00146419,126.24,126.2,3.2976195]
[1766378488683,0.00146419,126.24,126.21,3.18]
[1766378496191,3.23,126.28,126.22,3.39]
[1766378497084,0.05565945,126.26,126.24,0.05321777]
[1766378500194,46.8,126.3,126.24,0.05321777]
[1766378500195,50.13,126.3,126.24,3.44321777]
[1766378500493,3.33,126.29,126.24,3.44321777]
[1766378501194,0.05324721,126.28,126.24,3.44321777]
[1766378507705,0.00324721,126.28,126.24,3.44321777]
[1766378507896,110.8445,126.36,126.24,3.44321777]
[1766378507897,3.33,126.37,126.28,3.39]
[1766378508196,3.33,126.41,126.3,3.39]
[1766378508497,3.33,126.4,126.31,3.39]
[1766378508887,0.05738355,126.37,126.34,0.049954]
[1766378509394,46.8,126.41,126.34,3.439954]
[1766378509896,50.13,126.41,126.34,3.439954]
[1766378510487,0.05369251,126.39,126.34,3.439954]
[1766378511288,0.05369251,126.39,126.3,110.889]
[1766378511289,3.38369251,126.39,126.3,3.39]
[1766378511591,3.38369251,126.39,126.28,3.39]
[1766378511592,3.33,126.37,126.28,3.39]
[1766378511989,3.33,126.35,126.28,3.39]
[1766378512193,3.33,126.35,126.26,10.5209]
[1766378512392,0.05434664,126.32,126.29,0.05851975]
[1766378524788,3.38434664,126.32,126.25,3.39]
[1766378526001,3.38434664,126.32,126.27,0.05741021]